[Event "FIDE WYCC Girls U14 2023"]
[Site "Montesilvano"]
[Date "2023.11.23"]
[Round "10.6"]
[White "Sachi Jain"]
[Black "Smietanska, Wiktoria"]
[Result "1/2-1/2"]
[ECO "C00"]
[WhiteElo "1743"]
[BlackElo "2009"]
[Annotator "NA RC"]
[PlyCount "103"]
[EventDate "2023.11.13"]
[EventType "swiss"]
[EventCountry "ITA"]
[SourceTitle "playchess.com"]
[Source "ChessBase"]
[SourceQuality "1"]
[TimeControl "40/5400+30:1800+30"]

1. e4 {[%emt 0:03:02]} e6 {[%emt 0:00:10]} 2. d3 {[%emt 0:00:13]} d5 {[%emt 0:00:17]} 3. Nd2 {[%emt 0:00:17]} Nc6 {[%emt 0:00:17]} 4. g3 {[%emt 0:01:43]} dxe4 {[%emt 0:00:20]} 5. Nxe4 {[%emt 0:09:14]} e5 {[%emt 0:01:15]} 6. Bg2 {[%emt 0:00:16]} f5 {[%emt 0:03:19]} 7. Nc3 {[%emt 0:01:29]} Nf6 {[%emt 0:03:23]} 8. a3 {[%emt 0:03:44]} Bc5 {[%emt 0:04:18]} 9. Nge2 {[%emt 0:04:04]} a5 {[%emt 0:03:09]} 10. b3 {[%emt 0:08:43]} O-O {[%emt 0:01:50]} 11. h3 {[%emt 0:02:20]} Be6 {[%emt 0:04:40]} 12. Bb2 {[%emt 0:00:43]} Qd7 {[%emt 0:02:31]} 13. Qd2 {[%emt 0:03:46]} Rad8 {[%emt 0:05:17]} 14. Rh2 {[%emt 0:09:02]} e4 {[%emt 0:15:02]} 15. Nf4 {[%emt 0:03:53]} exd3 {[%emt 0:10:36]} 16. Nxd3 {[%emt 0:00:53]} Qe7 {[%emt 0:04:29]} 17. Bxc6 {[%emt 0:08:19]} bxc6 {[%emt 0:00:35]} 18. Qe2 {[%emt 0:00:02]} Rfe8 {[%emt 0:02:03]} 19. f4 {[%emt 0:12:38]} Bd4 {[%emt 0:04:09]} 20. O-O-O {[%emt 0:05:30]} Bxc3 {[%emt 0:08:19]} 21. Bxc3 {[%emt 0:00:03]} Qxa3+ {[%emt 0:00:13]} 22. Bb2 {[%emt 0:00:04]} Qf8 {[%emt 0:02:23]} 23. Ne5 {[%emt 0:02:16]} Rxd1+ {[%emt 0:01:19]} 24. Qxd1 {[%emt 0:00:01]} Qc5 {[%emt 0:02:07]} 25. Qd4 {[%emt 0:04:48]} Qb5 {[%emt 0:02:10]} 26. Nd3 {[%emt 0:01:40]} Qd5 {[%emt 0:03:40]} 27. Nc5 {[%emt 0:06:40]} Qf3 {[%emt 0:01:47]} 28. Qf2 {[%emt 0:01:08]} Qxf2 {[%emt 0:05:11]} 29. Rxf2 {[%emt 0:00:02]} Ne4 {[%emt 0:01:11]} 30. Nxe4 {[%emt 0:00:13]} fxe4 {[%emt 0:00:05]} 31. g4 {[%emt 0:03:07]} a4 {[%emt 0:02:02]} 32. Re2 {[%emt 0:02:52]} Bd5 {[%emt 0:04:29]} 33. c4 {[%emt 0:02:48]} Bf7 {[%emt 0:02:47]} 34. Be5 {[%emt 0:00:30]} axb3 {[%emt 0:01:03]} 35. Rxe4 {[%emt 0:00:01]} Rb8 {[%emt 0:00:53]} 36. Bc3 {[%emt 0:01:28]} Kf8 {[%emt 0:00:33]} 37. Kb2 {[%emt 0:00:09]} Rb7 {[%emt 0:00:35]} 38. Ka3 {[%emt 0:00:17]} c5 {[%emt 0:00:21]} 39. Kb2 {[%emt 0:01:25]} h5 {[%emt 0:00:39]} 40. gxh5 {[%emt 0:00:00]} Bxh5 {[%emt 0:00:00]} 41. Re5 {[%emt 0:00:47]} Bd1 {[%emt 0:06:20]} 42. Rxc5 {[%emt 0:00:14]} Ra7 {[%emt 0:00:46]} 43. Ra5 {[%emt 0:00:12]} Rxa5 {[%emt 0:00:35]} 44. Bxa5 {[%emt 0:00:02]} c6 {[%emt 0:00:16]} 45. Bc3 {[%emt 0:01:12]} g6 {[%emt 0:00:51]} 46. c5 {[%emt 0:00:40]} Kf7 {[%emt 0:00:10]} 47. Be1 {[%emt 0:02:18]} Ke6 {[%emt 0:00:09]} 48. Bh4 {[%emt 0:00:05]} Kd5 {[%emt 0:00:43]} 49. Be7 {[%emt 0:00:02]} Ke4 {[%emt 0:00:12]} 50. Bg5 {[%emt 0:00:11]} Kf5 {[%emt 0:00:41]} 51. h4 {[%emt 0:00:01]} Ke4 {[%emt 0:00:21]} 52. Kc3 {[%emt 0:00:04]} 1/2-1/2

[Event "FIDE WYCC Girls U14 2023"]
[Site "Montesilvano"]
[Date "2023.11.23"]
[Round "10.7"]
[White "Avetisyan, Ani"]
[Black "Khulan, Bayarsaikhan"]
[Result "0-1"]
[ECO "A59"]
[WhiteElo "1770"]
[BlackElo "1615"]
[Annotator "NA RC"]
[PlyCount "118"]
[EventDate "2023.11.13"]
[EventType "swiss"]
[EventCountry "ITA"]
[SourceTitle "playchess.com"]
[Source "ChessBase"]
[SourceQuality "1"]
[TimeControl "40/5400+30:1800+30"]

1. d4 {[%emt 0:01:12]} Nf6 {[%emt 0:01:10]} 2. c4 {[%emt 0:00:21]} c5 {[%emt 0:00:04]} 3. d5 {[%emt 0:00:17]} b5 {[%emt 0:00:03]} 4. cxb5 {[%emt 0:00:06]} a6 {[%emt 0:01:02]} 5. bxa6 {[%emt 0:00:23]} Bxa6 {[%emt 0:00:01]} 6. Nc3 {[%emt 0:00:33]} g6 {[%emt 0:00:04]} 7. e4 {[%emt 0:00:26]} Bxf1 {[%emt 0:00:14]} 8. Kxf1 {[%emt 0:00:03]} d6 {[%emt 0:00:09]} 9. g3 {[%emt 0:00:13]} Bg7 {[%emt 0:00:02]} 10. Kg2 {[%emt 0:00:08]} O-O {[%emt 0:00:05]} 11. Nf3 {[%emt 0:00:09]} Nbd7 {[%emt 0:00:06]} 12. h3 {[%emt 0:00:10]} Ra6 {[%emt 0:00:13]} 13. a4 {[%emt 0:00:23]} Qa8 {[%emt 0:01:09]} 14. Qc2 {[%emt 0:07:09]} Rb8 {[%emt 0:01:38]} 15. Re1 {[%emt 0:09:02]} Rb4 {[%emt 0:02:15]} 16. Ra2 {[%emt 0:13:23]} Ne8 {[%emt 0:06:00]} 17. Bd2 {[%emt 0:03:44]} Bxc3 {[%emt 0:07:27]} 18. Bxc3 {[%emt 0:01:20]} Rbxa4 {[%emt 0:00:45]} 19. Rxa4 Rxa4 {[%emt 0:00:20]} 20. Qd3 {[%emt 0:07:59]} Ndf6 {[%emt 0:04:32]} 21. Kh2 {[%emt 0:04:03]} Qa6 {[%emt 0:06:23]} 22. Qxa6 {[%emt 0:02:09]} Rxa6 {[%emt 0:00:03]} 23. Nd2 {[%emt 0:01:16]} Kf8 {[%emt 0:05:57]} 24. Nc4 {[%emt 0:04:46]} Nd7 {[%emt 0:04:29]} 25. Kg2 {[%emt 0:07:13]} Nc7 {[%emt 0:01:34]} 26. g4 {[%emt 0:07:36]} f6 {[%emt 0:08:03]} 27. Kg3 {[%emt 0:05:01]} Nb5 {[%emt 0:01:05]} 28. Ba5 {[%emt 0:04:24]} Ne5 {[%emt 0:04:16]} 29. Nxe5 {[%emt 0:00:45]} Rxa5 {[%emt 0:00:16]} 30. Nc4 {[%emt 0:06:34]} Ra4 {[%emt 0:00:58]} 31. Rc1 {[%emt 0:01:12]} Nd4 {[%emt 0:01:07]} 32. Kg2 {[%emt 0:01:01]} Rb4 {[%emt 0:00:26]} 33. Rc3 {[%emt 0:04:32]} Kf7 {[%emt 0:01:06]} 34. f3 {[%emt 0:02:24]} Nb5 {[%emt 0:05:41]} 35. Rc2 {[%emt 0:01:38]} Rb3 {[%emt 0:00:19]} 36. f4 {[%emt 0:04:20]} Nd4 {[%emt 0:01:07]} 37. Rf2 {[%emt 0:00:26]} Rb4 {[%emt 0:01:24]} 38. Ne3 {[%emt 0:00:01]} Nb3 {[%emt 0:02:18]} 39. e5 {[%emt 0:01:45]} Nc1 {[%emt 0:06:33]} 40. exd6 {[%emt 0:00:00]} exd6 {[%emt 0:00:00]} 41. Rd2 {[%emt 0:11:29]} Rxf4 {[%emt 0:01:50]} 42. Rd1 {[%emt 0:02:26]} Nb3 {[%emt 0:01:13]} 43. Rd3 {[%emt 0:01:45]} Rb4 {[%emt 0:00:52]} 44. Rc3 {[%emt 0:03:16]} Na5 {[%emt 0:04:40]} 45. Rc2 {[%emt 0:00:17]} Rb3 {[%emt 0:00:46]} 46. Kf2 {[%emt 0:00:28]} Ke7 {[%emt 0:02:29]} 47. h4 {[%emt 0:00:53]} Kd7 {[%emt 0:00:47]} 48. h5 {[%emt 0:01:17]} Nb7 {[%emt 0:01:53]} 49. Kf3 {[%emt 0:02:28]} Nd8 {[%emt 0:00:33]} 50. hxg6 hxg6 {[%emt 0:00:04]} 51. Kf2 {[%emt 0:05:15]} Nf7 {[%emt 0:00:26]} 52. Nc4 {[%emt 0:00:35]} Ne5 {[%emt 0:04:45]} 53. Nxe5+ {[%emt 0:02:20]} fxe5 {[%emt 0:00:02]} 54. Rd2 {[%emt 0:00:08]} Ke7 {[%emt 0:00:03]} 55. Kg2 {[%emt 0:00:15]} Kf6 {[%emt 0:00:09]} 56. Rf2+ {[%emt 0:00:56]} Kg5 {[%emt 0:00:08]} 57. Rf7 {[%emt 0:00:17]} Rxb2+ {[%emt 0:00:09]} 58. Kg3 {[%emt 0:00:26]} Rb3+ {[%emt 0:01:17]} 59. Kg2 {[%emt 0:00:09]} Rd3 {[%emt 0:00:13]} 0-1

[Event "FIDE WYCC Girls U14 2023"]
[Site "Montesilvano"]
[Date "2023.11.23"]
[Round "10.8"]
[White "Natoli, Alessia"]
[Black "Orazalina, Nursulu"]
[Result "1-0"]
[ECO "D45"]
[WhiteElo "1756"]
[BlackElo "1428"]
[Annotator "NA RC"]
[PlyCount "57"]
[EventDate "2023.11.13"]
[EventType "swiss"]
[EventCountry "ITA"]
[SourceTitle "playchess.com"]
[Source "ChessBase"]
[SourceQuality "1"]
[TimeControl "40/5400+30:1800+30"]

1. d4 {[%emt 0:01:52]} d5 {[%emt 0:00:06]} 2. c4 {[%emt 0:00:44]} c6 {[%emt 0:00:05]} 3. Nf3 {[%emt 0:00:43]} Nf6 {[%emt 0:00:06]} 4. Nc3 {[%emt 0:00:20]} e6 {[%emt 0:00:07]} 5. e3 {[%emt 0:00:50]} Nbd7 {[%emt 0:00:06]} 6. Qc2 {[%emt 0:00:27]} a6 {[%emt 0:02:28]} 7. b3 {[%emt 0:02:24]} b6 {[%emt 0:07:12]} 8. Bd3 {[%emt 0:01:08]} Bb7 {[%emt 0:00:26]} 9. O-O {[%emt 0:01:47]} Be7 {[%emt 0:03:20]} 10. Bb2 {[%emt 0:02:37]} c5 {[%emt 0:07:22]} 11. cxd5 {[%emt 0:04:01]} exd5 {[%emt 0:02:21]} 12. Rad1 {[%emt 0:02:39]} Rc8 {[%emt 0:12:45]} 13. Qe2 {[%emt 0:03:54]} a5 {[%emt 0:21:57]} 14. dxc5 {[%emt 0:07:11]} bxc5 {[%emt 0:06:13]} 15. e4 {[%emt 0:08:09]} d4 {[%emt 0:03:27]} 16. Nb1 {[%emt 0:01:44]} Qc7 {[%emt 0:08:40]} 17. Na3 {[%emt 0:03:29]} O-O {[%emt 0:01:30]} 18. Nc4 {[%emt 0:03:06]} Bd6 {[%emt 0:03:24]} 19. Rde1 {[%emt 0:03:58]} Rfe8 {[%emt 0:01:47]} 20. Qc2 {[%emt 0:01:35]} h6 {[%emt 0:09:16]} 21. Bc1 {[%emt 0:06:29]} Ba6 {[%emt 0:03:41]} 22. Nxd6 {[%emt 0:04:53]} Qxd6 {[%emt 0:00:07]} 23. e5 {[%emt 0:02:40]} Bxd3 {[%emt 0:03:44]} 24. Qxd3 {[%emt 0:01:25]} Qc6 {[%emt 0:00:58]} 25. exf6 {[%emt 0:00:28]} Nxf6 {[%emt 0:00:26]} 26. Ne5 {[%emt 0:02:34]} Qd5 {[%emt 0:00:37]} 27. Nc4 {[%emt 0:00:31]} Ne4 {[%emt 0:01:00]} 28. f3 {[%emt 0:02:10]} Nc3 {[%emt 0:00:10]} 29. Nb6 {[%emt 0:00:48]} 1-0

[Event "FIDE WYCC Girls U14 2023"]
[Site "Montesilvano"]
[Date "2023.11.23"]
[Round "10.9"]
[White "Jankovic, Tamara"]
[Black "Derlich, Sarah Sima"]
[Result "0-1"]
[ECO "B13"]
[WhiteElo "1711"]
[BlackElo "1745"]
[Annotator "NA RC"]
[PlyCount "96"]
[EventDate "2023.11.13"]
[EventType "swiss"]
[EventCountry "ITA"]
[SourceTitle "playchess.com"]
[Source "ChessBase"]
[SourceQuality "1"]
[TimeControl "40/5400+30:1800+30"]

1. e4 {[%emt 0:00:04]} c6 {[%emt 0:00:04]} 2. d4 {[%emt 0:00:05]} d5 {[%emt 0:00:06]} 3. exd5 {[%emt 0:00:04]} cxd5 {[%emt 0:00:05]} 4. Bd3 {[%emt 0:00:08]} Nc6 {[%emt 0:00:17]} 5. c3 {[%emt 0:00:11]} Nf6 {[%emt 0:00:06]} 6. h3 {[%emt 0:00:03]} e5 {[%emt 0:00:07]} 7. dxe5 {[%emt 0:00:07]} Nxe5 {[%emt 0:00:07]} 8. Nf3 {[%emt 0:00:37]} Nxd3+ {[%emt 0:00:11]} 9. Qxd3 {[%emt 0:00:05]} Bd6 {[%emt 0:00:07]} 10. O-O {[%emt 0:00:07]} O-O {[%emt 0:00:05]} 11. Bg5 {[%emt 0:00:27]} h6 {[%emt 0:00:05]} 12. Be3 {[%emt 0:02:52]} Bd7 {[%emt 0:04:11]} 13. Nbd2 {[%emt 0:00:19]} Bc6 {[%emt 0:00:39]} 14. Nd4 {[%emt 0:00:11]} Rc8 {[%emt 0:03:47]} 15. Rfe1 {[%emt 0:01:32]} Re8 {[%emt 0:01:56]} 16. N2b3 {[%emt 0:08:54]} Ne4 {[%emt 0:11:51]} 17. Rad1 {[%emt 0:08:25]} Bb8 {[%emt 0:05:22]} 18. Nf5 {[%emt 0:10:17]} Qf6 {[%emt 0:12:57]} 19. g4 {[%emt 0:03:41]} g6 {[%emt 0:12:11]} 20. Bd4 {[%emt 0:11:07]} Qg5 {[%emt 0:14:06]} 21. Be3 {[%emt 0:06:32]} Qd8 {[%emt 0:07:58]} 22. Nxh6+ {[%emt 0:08:28]} Kg7 {[%emt 0:01:04]} 23. Nd4 {[%emt 0:00:25]} Qc7 {[%emt 0:09:46]} 24. Nf3 {[%emt 0:00:53]} Qd7 {[%emt 0:01:27]} 25. Qd4+ {[%emt 0:01:27]} f6 {[%emt 0:00:45]} 26. Kg2 {[%emt 0:06:18]} Be5 {[%emt 0:02:56]} 27. Qd3 {[%emt 0:02:30]} Bb5 {[%emt 0:02:22]} 28. Qxd5 {[%emt 0:04:03]} Qxd5 {[%emt 0:00:23]} 29. Rxd5 {[%emt 0:00:04]} Bc6 {[%emt 0:00:15]} 30. Rd3 {[%emt 0:02:06]} Ng5 {[%emt 0:01:03]} 31. Bxg5 {[%emt 0:06:25]} fxg5 {[%emt 0:00:42]} 32. Kf1 {[%emt 0:00:35]} Bb5 {[%emt 0:01:43]} 33. Nxe5 {[%emt 0:01:50]} Rxe5 {[%emt 0:00:59]} 34. Rxe5 {[%emt 0:00:10]} Bxd3+ {[%emt 0:00:04]} 35. Ke1 {[%emt 0:00:32]} Kxh6 {[%emt 0:00:28]} 36. Re7 {[%emt 0:01:39]} Ba6 {[%emt 0:01:02]} 37. Re3 {[%emt 0:03:32]} Kg7 {[%emt 0:00:42]} 38. b3 {[%emt 0:00:23]} Rc7 {[%emt 0:02:01]} 39. Kd2 {[%emt 0:01:09]} Rd7+ {[%emt 0:00:59]} 40. Kc2 {[%emt 0:00:00]} Rf7 {[%emt 0:00:00]} 41. f3 {[%emt 0:03:44]} Bf1 {[%emt 0:02:18]} 42. c4 {[%emt 0:01:02]} Bg2 {[%emt 0:01:44]} 43. Re5 {[%emt 0:01:42]} Rxf3 {[%emt 0:01:42]} 44. Rxg5 {[%emt 0:00:13]} Bxh3 {[%emt 0:04:47]} 45. Rb5 {[%emt 0:00:30]} Rf7 {[%emt 0:00:13]} 46. g5 {[%emt 0:00:11]} Bg2 {[%emt 0:00:14]} 47. Re5 {[%emt 0:00:39]} Rf5 {[%emt 0:00:57]} 48. Re7+ {[%emt 0:01:03]} Kf8 {[%emt 0:00:21]} 0-1

[Event "FIDE WYCC Girls U14 2023"]
[Site "Montesilvano"]
[Date "2023.11.23"]
[Round "10.10"]
[White "Zhang, Michelle"]
[Black "Nguyen, Thuy Linh"]
[Result "1/2-1/2"]
[ECO "B50"]
[WhiteElo "1833"]
[BlackElo "1398"]
[Annotator "NA RC"]
[PlyCount "97"]
[EventDate "2023.11.13"]
[EventType "swiss"]
[EventCountry "ITA"]
[SourceTitle "playchess.com"]
[Source "ChessBase"]
[SourceQuality "1"]
[TimeControl "40/5400+30:1800+30"]

1. e4 {[%emt 0:00:14]} c5 {[%emt 0:00:07]} 2. Nf3 {[%emt 0:00:23]} d6 {[%emt 0:00:11]} 3. c3 {[%emt 0:00:57]} Nf6 {[%emt 0:00:24]} 4. Be2 {[%emt 0:00:55]} g6 {[%emt 0:01:30]} 5. d3 {[%emt 0:02:06]} Bg7 {[%emt 0:00:18]} 6. O-O {[%emt 0:00:45]} O-O {[%emt 0:00:08]} 7. Nbd2 {[%emt 0:01:47]} Nc6 {[%emt 0:03:29]} 8. Re1 {[%emt 0:02:24]} Rb8 {[%emt 0:02:52]} 9. Nf1 {[%emt 0:03:54]} e5 {[%emt 0:04:45]} 10. Ng3 {[%emt 0:01:51]} d5 {[%emt 0:08:51]} 11. Qc2 {[%emt 0:09:42]} b6 {[%emt 0:07:56]} 12. Be3 {[%emt 0:03:44]} Bb7 {[%emt 0:07:44]} 13. Rad1 {[%emt 0:02:57]} d4 {[%emt 0:02:31]} 14. Bg5 {[%emt 0:01:37]} h6 {[%emt 0:03:13]} 15. Bc1 {[%emt 0:01:49]} Qe7 {[%emt 0:00:21]} 16. Rf1 {[%emt 0:01:27]} Rbc8 {[%emt 0:04:49]} 17. h4 {[%emt 0:04:34]} Na5 {[%emt 0:03:22]} 18. Qd2 {[%emt 0:02:42]} dxc3 {[%emt 0:06:19]} 19. Qxc3 {[%emt 0:05:50]} Ne8 {[%emt 0:05:57]} 20. h5 {[%emt 0:04:57]} Nd6 {[%emt 0:01:25]} 21. b3 {[%emt 0:05:20]} g5 {[%emt 0:01:30]} 22. Nh2 {[%emt 0:06:30]} Nc6 {[%emt 0:01:14]} 23. Bg4 {[%emt 0:06:40]} Rc7 {[%emt 0:04:10]} 24. Qd2 {[%emt 0:03:32]} Nd4 {[%emt 0:01:59]} 25. Bb2 {[%emt 0:03:10]} Bc8 {[%emt 0:00:28]} 26. Bxc8 {[%emt 0:00:27]} Rfxc8 {[%emt 0:00:19]} 27. Ng4 {[%emt 0:01:40]} Qe6 {[%emt 0:00:59]} 28. Ne3 {[%emt 0:01:17]} Ne8 {[%emt 0:02:56]} 29. Nd5 {[%emt 0:01:46]} Rc6 {[%emt 0:00:54]} 30. Bxd4 {[%emt 0:01:20]} cxd4 {[%emt 0:00:08]} 31. Nf5 {[%emt 0:01:18]} Bf8 {[%emt 0:00:10]} 32. Rc1 {[%emt 0:02:49]} Nf6 {[%emt 0:02:36]} 33. Nxf6+ Qxf6 {[%emt 0:00:10]} 34. Rxc6 {[%emt 0:04:07]} Qxc6 {[%emt 0:00:12]} 35. g3 {[%emt 0:05:08]} Qc2 {[%emt 0:08:02]} 36. Rd1 {[%emt 0:01:24]} Qxd2 {[%emt 0:04:03]} 37. Rxd2 {[%emt 0:00:08]} Rc1+ {[%emt 0:00:09]} 38. Kg2 {[%emt 0:01:22]} Bb4 {[%emt 0:01:06]} 39. Re2 {[%emt 0:01:11]} Bf8 {[%emt 0:04:08]} 40. Rd2 {[%emt 0:00:00]} f6 {[%emt 0:00:00]} 41. f4 {[%emt 0:04:15]} a5 {[%emt 0:02:40]} 42. fxe5 {[%emt 0:02:19]} fxe5 {[%emt 0:00:09]} 43. Rf2 {[%emt 0:01:53]} Rc3 {[%emt 0:00:13]} 44. Rd2 {[%emt 0:01:10]} Rc1 {[%emt 0:04:01]} 45. Kf3 {[%emt 0:06:54]} Bb4 {[%emt 0:05:12]} 46. Rf2 {[%emt 0:01:39]} Bf8 {[%emt 0:01:31]} 47. Rd2 {[%emt 0:02:00]} Bb4 {[%emt 0:00:36]} 48. Rf2 {[%emt 0:00:25]} Bf8 {[%emt 0:00:06]} 49. Rd2 {[%emt 0:01:07]} 1/2-1/2

[Event "FIDE WYCC Girls U14 2023"]
[Site "Montesilvano"]
[Date "2023.11.23"]
[Round "10.11"]
[White "Agamyradova, Mahri"]
[Black "Romany, Joy"]
[Result "*"]
[WhiteElo "1652"]
[BlackElo "1764"]
[Annotator "NA RC"]
[PlyCount "45"]
[EventDate "2023.11.13"]
[EventType "swiss"]
[EventCountry "ITA"]
[SourceTitle "playchess.com"]
[Source "ChessBase"]
[SourceQuality "1"]
[TimeControl "40/5400+30:1800+30"]

1. d4 {[%emt 0:00:03]} d5 {[%emt 0:00:06]} 2. Nf3 {[%emt 0:00:17]} Nf6 {[%emt 0:00:18]} 3. Bf4 {[%emt 0:00:05]} c5 {[%emt 0:00:04]} 4. e3 {[%emt 0:00:53]} Nc6 {[%emt 0:00:06]} 5. Nbd2 {[%emt 0:06:52]} Qb6 {[%emt 0:01:29]} 6. dxc5 {[%emt 0:00:22]} Qxb2 {[%emt 0:03:53]} 7. Rb1 {[%emt 0:01:13]} Qc3 {[%emt 0:01:52]} 8. Bb5 {[%emt 0:01:47]} Ne4 {[%emt 0:13:19]} 9. O-O {[%emt 0:05:46]} Nxd2 {[%emt 0:01:55]} 10. Nxd2 {[%emt 0:00:06]} e6 {[%emt 0:08:52]} 11. e4 {[%emt 0:06:54]} Qxc5 {[%emt 0:11:14]} 12. exd5 {[%emt 0:07:07]} Qxd5 {[%emt 0:01:39]} 13. c4 {[%emt 0:00:12]} Qf5 {[%emt 0:02:05]} 14. Bxc6+ {[%emt 0:06:33]} bxc6 {[%emt 0:00:13]} 15. Qa4 {[%emt 0:02:08]} Bd7 {[%emt 0:02:48]} 16. Bg3 {[%emt 0:01:05]} Bc5 {[%emt 0:09:48]} 17. Rb7 {[%emt 0:06:03]} Rd8 {[%emt 0:01:28]} 18. Bc7 {[%emt 0:20:22]} Rc8 {[%emt 0:01:01]} 19. Nb3 {[%emt 0:11:17]} Rxc7 {[%emt 0:23:42]} 20. Rxc7 {[%emt 0:01:59]} Bd6 {[%emt 0:00:25]} 21. Rxd7 {[%emt 0:12:01]} Kxd7 {[%emt 0:00:21]} 22. Qxa7+ {[%emt 0:00:01]} Kc8 {[%emt 0:00:46]} 23. Na5 {[%emt 0:01:28]} *

[Event "FIDE WYCC Girls U14 2023"]
[Site "Montesilvano"]
[Date "2023.11.23"]
[Round "10.12"]
[White "Gaszka, Zuzanna"]
[Black "Diasamidze, Lulu"]
[Result "1-0"]
[ECO "B40"]
[WhiteElo "1758"]
[BlackElo "1676"]
[Annotator "NA RC"]
[PlyCount "115"]
[EventDate "2023.11.13"]
[EventType "swiss"]
[EventCountry "ITA"]
[SourceTitle "playchess.com"]
[Source "ChessBase"]
[SourceQuality "1"]
[TimeControl "40/5400+30:1800+30"]

1. e4 c5 {[%emt 0:00:37]} 2. Nf3 {[%emt 0:00:06]} e6 {[%emt 0:00:09]} 3. c3 {[%emt 0:00:04]} d5 {[%emt 0:00:31]} 4. exd5 {[%emt 0:00:05]} Qxd5 {[%emt 0:00:20]} 5. d4 {[%emt 0:00:08]} Nf6 {[%emt 0:00:17]} 6. Na3 {[%emt 0:00:13]} Nc6 {[%emt 0:02:43]} 7. Be3 {[%emt 0:00:13]} cxd4 {[%emt 0:01:04]} 8. Nb5 {[%emt 0:00:34]} Qd8 {[%emt 0:00:22]} 9. Nbxd4 {[%emt 0:00:52]} Nxd4 {[%emt 0:00:37]} 10. Bxd4 {[%emt 0:01:54]} Be7 {[%emt 0:01:31]} 11. Bd3 {[%emt 0:00:47]} O-O {[%emt 0:01:59]} 12. Qe2 {[%emt 0:02:21]} Nd5 {[%emt 0:05:18]} 13. O-O {[%emt 0:02:49]} Bf6 {[%emt 0:01:32]} 14. Qe4 {[%emt 0:01:48]} g6 {[%emt 0:00:18]} 15. Ne5 {[%emt 0:02:27]} Nc7 {[%emt 0:07:48]} 16. Rad1 {[%emt 0:02:01]} Qe7 {[%emt 0:06:58]} 17. Rfe1 {[%emt 0:10:44]} Re8 {[%emt 0:03:52]} 18. Ng4 {[%emt 0:06:24]} Bg7 {[%emt 0:11:31]} 19. Bxg7 {[%emt 0:00:22]} Kxg7 {[%emt 0:00:22]} 20. Qe5+ {[%emt 0:00:14]} f6 {[%emt 0:00:15]} 21. Nxf6 {[%emt 0:00:25]} Qxf6 {[%emt 0:00:07]} 22. Qxc7+ {[%emt 0:00:02]} Re7 {[%emt 0:00:11]} 23. Qg3 {[%emt 0:00:08]} e5 {[%emt 0:02:43]} 24. Re3 {[%emt 0:02:48]} Bf5 {[%emt 0:01:19]} 25. Bxf5 {[%emt 0:00:52]} Qxf5 {[%emt 0:00:10]} 26. Rde1 {[%emt 0:00:42]} Rae8 {[%emt 0:00:15]} 27. Qh4 {[%emt 0:00:27]} a6 {[%emt 0:00:42]} 28. h3 {[%emt 0:02:38]} b5 {[%emt 0:00:58]} 29. Qb4 {[%emt 0:00:50]} Qe6 {[%emt 0:10:39]} 30. b3 {[%emt 0:02:03]} Qc6 {[%emt 0:01:49]} 31. Qg4 {[%emt 0:03:52]} Qd6 {[%emt 0:01:26]} 32. Rd1 {[%emt 0:02:34]} Qa3 {[%emt 0:00:58]} 33. Qe2 {[%emt 0:00:22]} Qc5 {[%emt 0:00:43]} 34. h4 {[%emt 0:02:09]} h5 {[%emt 0:01:35]} 35. Rg3 {[%emt 0:07:22]} Kh7 {[%emt 0:03:01]} 36. Qe4 {[%emt 0:00:18]} Qb6 {[%emt 0:01:45]} 37. Rdd3 {[%emt 0:04:08]} Rf7 {[%emt 0:04:13]} 38. Rgf3 {[%emt 0:00:50]} Rxf3 {[%emt 0:01:49]} 39. Rxf3 {[%emt 0:00:12]} Qe6 {[%emt 0:00:55]} 40. Re3 {[%emt 0:00:00]} Qb6 {[%emt 0:00:00]} 41. Qd5 {[%emt 0:02:39]} Qe6 {[%emt 0:05:41]} 42. Qe4 {[%emt 0:00:56]} Qb6 {[%emt 0:00:33]} 43. Rf3 {[%emt 0:00:24]} Qe6 {[%emt 0:01:29]} 44. Rd3 {[%emt 0:01:28]} Qf6 {[%emt 0:01:26]} 45. c4 {[%emt 0:05:35]} bxc4 {[%emt 0:00:10]} 46. Qxc4 {[%emt 0:04:37]} Re7 {[%emt 0:03:25]} 47. Rf3 {[%emt 0:06:08]} Qd6 {[%emt 0:05:22]} 48. Rf8 {[%emt 0:01:48]} Rc7 {[%emt 0:15:39]} 49. Qg8+ {[%emt 0:02:57]} Kh6 {[%emt 0:00:56]} 50. Qh8+ {[%emt 0:01:32]} Rh7 {[%emt 0:00:08]} 51. Qf6 {[%emt 0:00:14]} Qd1+ {[%emt 0:01:15]} 52. Kh2 {[%emt 0:00:04]} Qg4 {[%emt 0:00:12]} 53. g3 {[%emt 0:00:25]} e4 {[%emt 0:01:14]} 54. Qxa6 {[%emt 0:01:33]} e3 {[%emt 0:01:22]} 55. fxe3 {[%emt 0:00:27]} Rd7 {[%emt 0:01:17]} 56. Rf2 {[%emt 0:00:25]} Qe4 {[%emt 0:00:39]} 57. Qe2 {[%emt 0:01:07]} Rd3 {[%emt 0:00:21]} 58. Qf3 {[%emt 0:01:36]} 1-0